[Event "Reykjavik Open 2025"]
[Site "Reykjavik"]
[Date "2025.04.09"]
[Round "1.40"]
[White "Lu, Miaoyi"]
[Black "Liu, Meng"]
[Result "1-0"]
[Annotator "ChessBase"]
[ECO "B50"]
[WhiteElo "2429"]
[BlackElo "2079"]
[PlyCount "83"]
[EventDate "2025.04.09"]
[EventType "swiss"]
[EventCountry "ISL"]
[SourceTitle "playchess.com"]
[Source "ChessBase"]
[SourceQuality "1"]
[TimeControl "40/5400+30:1800+30"]

1. e4 {[%emt 0:00:02]} c5 {[%emt 0:00:05]} 2. Nf3 {[%emt 0:00:04]} d6 {[%emt 0:00:05]} 3. Nc3 {[%emt 0:00:12]} a6 {[%emt 0:00:11]} 4. Be2 {[%emt 0:01:43]} Nf6 {[%emt 0:00:28]} 5. O-O {[%emt 0:00:23]} e5 {[%emt 0:10:33]} 6. a4 {[%emt 0:00:27]} Be7 {[%emt 0:05:23]} 7. Bc4 {[%emt 0:00:06]} Nc6 {[%emt 0:00:42]} 8. d3 {[%emt 0:00:07]} O-O {[%emt 0:01:44]} 9. Bg5 {[%emt 0:00:04]} Be6 {[%emt 0:04:48]} 10. Bxf6 {[%emt 0:00:40]} Bxf6 {[%emt 0:00:06]} 11. Nd5 {[%emt 0:00:04]} g6 {[%emt 0:01:58]} 12. Qd2 {[%emt 0:00:21]} Bg7 {[%emt 0:06:54]} 13. a5 {[%emt 0:00:13]} Ne7 {[%emt 0:05:08]} 14. Nb6 {[%emt 0:05:59]} Rb8 {[%emt 0:01:24]} 15. Qe3 {[%emt 0:24:30]} Nc6 {[%emt 0:07:45]} 16. Qd2 {[%emt 0:04:13]} Ne7 {[%emt 0:12:08]} 17. Qg5 {[%emt 0:05:46]} h6 {[%emt 0:10:34]} 18. Qh4 {[%emt 0:03:08]} Qe8 {[%emt 0:07:29]} 19. Nd2 {[%emt 0:06:54]} Nc6 {[%emt 0:02:33]} 20. c3 {[%emt 0:03:08]} Kh7 {[%emt 0:03:14]} 21. Bd5 {[%emt 0:03:03]} Rd8 {[%emt 0:01:42]} 22. Ndc4 {[%emt 0:01:33]} f5 {[%emt 0:01:59]} 23. exf5 {[%emt 0:06:08]} gxf5 {[%emt 0:01:09]} 24. f4 {[%emt 0:00:04]} Bxd5 {[%emt 0:03:00]} 25. Nxd5 {[%emt 0:00:06]} Qe6 {[%emt 0:00:19]} 26. Nce3 {[%emt 0:00:41]} Qg6 {[%emt 0:03:26]} 27. Rf3 {[%emt 0:00:53]} Rde8 {[%emt 0:00:37]} 28. Qh3 {[%emt 0:03:38]} e4 {[%emt 0:00:34]} 29. dxe4 {[%emt 0:00:50]} Rxe4 {[%emt 0:00:19]} 30. Kh1 {[%emt 0:04:35]} Ne7 {[%emt 0:01:10]} 31. Nxe7 {[%emt 0:07:06]} Rxe7 {[%emt 0:00:02]} 32. Rg1 {[%emt 0:01:51]} Qe6 {[%emt 0:02:21]} 33. g4 {[%emt 0:01:31]} fxg4 {[%emt 0:00:06]} 34. Rxg4 {[%emt 0:00:29]} d5 {[%emt 0:02:54]} 35. f5 {[%emt 0:00:50]} Qe5 {[%emt 0:00:45]} 36. Rg6 {[%emt 0:12:56]} Qe4 {[%emt 0:04:18]} 37. Ng4 {[%emt 0:00:05]} Qe1+ {[%emt 0:00:33]} 38. Rf1 {[%emt 0:00:09]} Qe4+ {[%emt 0:00:06]} 39. Kg1 {[%emt 0:00:07]} Ref7 {[%emt 0:00:54]} 40. Nxh6 {[%emt 0:00:53]} Rf6 {[%emt 0:00:25]} 41. Nf7+ {[%emt 0:30:58]} Kg8 {[%emt 0:30:08]} 42. Ng5 {[%emt 0:00:12]} 1-0

[Event "Reykjavik Open 2025"]
[Site "Reykjavik"]
[Date "2025.04.09"]
[Round "1.41"]
[White "Schellenpfeil, Wolfgang"]
[Black "Niermann, Tristan"]
[Result "0-1"]
[Annotator "ChessBase"]
[ECO "A73"]
[WhiteElo "2079"]
[BlackElo "2427"]
[PlyCount "58"]
[EventDate "2025.04.09"]
[EventType "swiss"]
[EventCountry "ISL"]
[SourceTitle "playchess.com"]
[Source "ChessBase"]
[SourceQuality "1"]
[TimeControl "40/5400+30:1800+30"]

1. d4 {[%emt 0:00:03]} Nf6 {[%emt 0:00:10]} 2. c4 {[%emt 0:00:08]} e6 {[%emt 0:00:05]} 3. Nf3 {[%emt 0:01:06]} c5 {[%emt 0:00:10]} 4. d5 {[%emt 0:03:22]} exd5 {[%emt 0:00:09]} 5. cxd5 {[%emt 0:00:04]} d6 {[%emt 0:00:08]} 6. Nc3 {[%emt 0:00:11]} g6 {[%emt 0:00:05]} 7. e4 {[%emt 0:00:06]} Bg7 {[%emt 0:00:06]} 8. Be2 {[%emt 0:02:48]} Bg4 {[%emt 0:00:23]} 9. O-O {[%emt 0:02:29]} O-O {[%emt 0:00:07]} 10. Nd2 {[%emt 0:03:24]} Bxe2 {[%emt 0:00:10]} 11. Qxe2 {[%emt 0:00:17]} Re8 {[%emt 0:01:00]} 12. Qd3 {[%emt 0:09:05]} Na6 {[%emt 0:04:50]} 13. a3 {[%emt 0:02:51]} Nc7 {[%emt 0:02:00]} 14. f4 {[%emt 0:05:03]} b5 {[%emt 0:01:11]} 15. Qf3 {[%emt 0:06:07]} a5 {[%emt 0:01:14]} 16. g4 {[%emt 0:01:51]} c4 {[%emt 0:06:05]} 17. g5 {[%emt 0:06:46]} Nd7 {[%emt 0:00:09]} 18. h4 {[%emt 0:05:12]} Rc8 {[%emt 0:03:55]} 19. Kg2 {[%emt 0:09:31]} b4 {[%emt 0:01:01]} 20. axb4 {[%emt 0:08:49]} axb4 {[%emt 0:00:26]} 21. Nd1 {[%emt 0:07:54]} c3 {[%emt 0:01:22]} 22. Nc4 {[%emt 0:02:41]} Nb5 {[%emt 0:01:45]} 23. Na5 {[%emt 0:04:33]} Nd4 {[%emt 0:00:17]} 24. Qf2 {[%emt 0:02:52]} Rxe4 {[%emt 0:00:23]} 25. Be3 {[%emt 0:01:37]} c2 {[%emt 0:00:44]} 26. Bxd4 {[%emt 0:02:34]} Bxd4 {[%emt 0:00:12]} 27. Qf3 {[%emt 0:00:20]} cxd1=Q {[%emt 0:00:13]} 28. Re1 {[%emt 0:00:33]} Qxa1 29. Rxa1 {[%emt 0:00:27]} Rc4 {[%emt 0:00:46]} 0-1

[Event "Reykjavik Open 2025"]
[Site "Reykjavik"]
[Date "2025.04.09"]
[Round "1.42"]
[White "Stefansson, Hannes"]
[Black "Patel, Zain"]
[Result "1-0"]
[Annotator "ChessBase"]
[ECO "A34"]
[WhiteElo "2420"]
[BlackElo "2079"]
[PlyCount "73"]
[EventDate "2025.04.09"]
[EventType "swiss"]
[EventCountry "ISL"]
[SourceTitle "playchess.com"]
[Source "ChessBase"]
[SourceQuality "1"]
[TimeControl "40/5400+30:1800+30"]

1. Nf3 {[%emt 0:00:04]} Nf6 {[%emt 0:02:56]} 2. c4 {[%emt 0:00:18]} e6 {[%emt 0:01:29]} 3. Nc3 {[%emt 0:00:32]} c5 {[%emt 0:01:12]} 4. e3 {[%emt 0:03:46]} Be7 {[%emt 0:02:05]} 5. b3 {[%emt 0:02:45]} O-O {[%emt 0:02:21]} 6. Bb2 {[%emt 0:00:15]} b6 {[%emt 0:01:01]} 7. Qc2 {[%emt 0:02:58]} Bb7 {[%emt 0:00:22]} 8. Ng5 {[%emt 0:07:06]} g6 {[%emt 0:29:16]} 9. h4 {[%emt 0:03:31]} h5 {[%emt 0:02:11]} 10. Bd3 {[%emt 0:02:57]} Qe8 {[%emt 0:03:05]} 11. Nce4 {[%emt 0:10:44]} Nxe4 {[%emt 0:06:39]} 12. Nxe4 {[%emt 0:01:27]} d5 {[%emt 0:02:37]} 13. Nf6+ {[%emt 0:04:28]} Bxf6 {[%emt 0:04:39]} 14. Bxf6 {[%emt 0:00:06]} e5 {[%emt 0:01:47]} 15. cxd5 {[%emt 0:04:44]} Bxd5 {[%emt 0:01:36]} 16. Qc3 {[%emt 0:00:25]} Nd7 {[%emt 0:01:10]} 17. Bb5 {[%emt 0:00:12]} Qe6 {[%emt 0:00:30]} 18. Bg5 {[%emt 0:03:45]} a6 {[%emt 0:05:44]} 19. Bxd7 {[%emt 0:01:21]} Qxd7 {[%emt 0:00:06]} 20. Qxe5 {[%emt 0:03:42]} f6 {[%emt 0:01:44]} 21. Bxf6 {[%emt 0:00:10]} Rae8 {[%emt 0:01:54]} 22. Qg5 {[%emt 0:00:22]} Qf7 {[%emt 0:02:06]} 23. f3 {[%emt 0:03:37]} Bxf3 {[%emt 0:04:38]} 24. gxf3 {[%emt 0:00:07]} Qxf6 {[%emt 0:01:46]} 25. Qxf6 {[%emt 0:00:06]} Rxf6 {[%emt 0:00:04]} 26. Ke2 {[%emt 0:00:10]} b5 {[%emt 0:01:36]} 27. Rac1 {[%emt 0:00:55]} Rc8 {[%emt 0:00:46]} 28. d4 {[%emt 0:02:04]} Rfc6 {[%emt 0:01:52]} 29. d5 {[%emt 0:00:31]} Rb6 {[%emt 0:00:54]} 30. Rc2 {[%emt 0:02:15]} Kf7 {[%emt 0:04:36]} 31. Rhc1 {[%emt 0:01:06]} c4 {[%emt 0:00:12]} 32. e4 {[%emt 0:00:24]} Rb7 {[%emt 0:05:18]} 33. Ke3 {[%emt 0:01:50]} Rbc7 {[%emt 0:00:18]} 34. bxc4 {[%emt 0:02:36]} Rxc4 {[%emt 0:03:04]} 35. Rxc4 {[%emt 0:00:31]} Rxc4 {[%emt 0:00:09]} 36. Rxc4 {[%emt 0:00:38]} bxc4 {[%emt 0:00:04]} 37. f4 {[%emt 0:00:14]} 1-0

[Event "Reykjavik Open 2025"]
[Site "Reykjavik"]
[Date "2025.04.09"]
[Round "1.43"]
[White "Mensing, Adrian"]
[Black "Yankelevich, Lev"]
[Result "0-1"]
[Annotator "ChessBase"]
[ECO "E11"]
[WhiteElo "2078"]
[BlackElo "2413"]
[PlyCount "85"]
[EventDate "2025.04.09"]
[EventType "swiss"]
[EventCountry "ISL"]
[SourceTitle "playchess.com"]
[Source "ChessBase"]
[SourceQuality "1"]
[TimeControl "40/5400+30:1800+30"]

1. d4 {[%emt 0:00:02]} Nf6 {[%emt 0:00:24]} 2. c4 {[%emt 0:00:20]} e6 {[%emt 0:01:47]} 3. g3 {[%emt 0:00:05]} Bb4+ {[%emt 0:03:50]} 4. Nd2 {[%emt 0:00:07]} O-O {[%emt 0:01:33]} 5. Bg2 {[%emt 0:00:04]} d6 {[%emt 0:00:18]} 6. Ngf3 {[%emt 0:00:24]} a5 {[%emt 0:04:04]} 7. a3 {[%emt 0:01:14]} Bxd2+ {[%emt 0:00:18]} 8. Nxd2 {[%emt 0:00:02]} e5 {[%emt 0:04:39]} 9. dxe5 {[%emt 0:04:50]} dxe5 {[%emt 0:00:05]} 10. O-O {[%emt 0:00:23]} Qe7 {[%emt 0:08:21]} 11. Qc2 {[%emt 0:16:48]} Nc6 {[%emt 0:04:44]} 12. Re1 {[%emt 0:04:56]} a4 {[%emt 0:04:44]} 13. Qc3 {[%emt 0:27:25]} Bf5 {[%emt 0:04:13]} 14. e4 {[%emt 0:07:39]} Be6 {[%emt 0:01:42]} 15. Nf1 {[%emt 0:06:45]} Nd4 {[%emt 0:07:13]} 16. Bg5 {[%emt 0:06:05]} h6 {[%emt 0:01:54]} 17. Be3 {[%emt 0:00:14]} Nb3 {[%emt 0:13:41]} 18. Rad1 {[%emt 0:00:42]} Ng4 {[%emt 0:00:52]} 19. h3 {[%emt 0:06:48]} Nxe3 {[%emt 0:00:09]} 20. Nxe3 {[%emt 0:00:05]} Qc5 {[%emt 0:01:47]} 21. Kh2 {[%emt 0:00:56]} Rad8 {[%emt 0:06:26]} 22. f4 {[%emt 0:08:15]} f6 {[%emt 0:01:48]} 23. Nd5 {[%emt 0:01:22]} c6 {[%emt 0:06:00]} 24. fxe5 {[%emt 0:02:29]} cxd5 {[%emt 0:03:48]} 25. exd5 {[%emt 0:00:11]} Bf5 {[%emt 0:00:24]} 26. e6 {[%emt 0:02:04]} Rfe8 {[%emt 0:01:52]} 27. Rf1 {[%emt 0:00:15]} Bh7 {[%emt 0:00:34]} 28. Bf3 {[%emt 0:00:56]} Bg6 {[%emt 0:03:56]} 29. Bg4 {[%emt 0:01:09]} h5 {[%emt 0:03:16]} 30. Be2 {[%emt 0:02:21]} Qd6 {[%emt 0:01:25]} 31. Rf4 {[%emt 0:00:18]} Qe5 {[%emt 0:02:03]} 32. Qxe5 {[%emt 0:00:19]} fxe5 {[%emt 0:00:03]} 33. Rh4 {[%emt 0:00:09]} Bc2 {[%emt 0:04:26]} 34. Rf1 {[%emt 0:00:45]} g6 {[%emt 0:00:02]} 35. Kg2 {[%emt 0:01:02]} Nd4 {[%emt 0:00:12]} 36. Bd1 {[%emt 0:00:27]} Bxd1 {[%emt 0:00:33]} 37. Rxd4 {[%emt 0:00:30]} exd4 {[%emt 0:00:24]} 38. Rxd1 {[%emt 0:00:03]} b5 {[%emt 0:00:26]} 39. Kf3 {[%emt 0:00:54]} bxc4 {[%emt 0:02:49]} 40. Ke4 {[%emt 0:00:21]} d3 {[%emt 0:01:18]} 41. Ke5 {[%emt 0:09:19]} Rb8 {[%emt 0:00:59]} 42. Rd2 {[%emt 0:00:49]} Rb5 {[%emt 0:00:07]} 43. Kd4 {[%emt 0:04:15]} 0-1

[Event "Reykjavik Open 2025"]
[Site "Reykjavik"]
[Date "2025.04.09"]
[Round "1.44"]
[White "Fantinel, Thibault"]
[Black "Adams, Henry"]
[Result "1-0"]
[Annotator "RC"]
[ECO "A13"]
[WhiteElo "2411"]
[BlackElo "2077"]
[PlyCount "109"]
[EventDate "2025.04.09"]
[EventType "swiss"]
[EventCountry "ISL"]
[SourceTitle "playchess.com"]
[Source "ChessBase"]
[SourceQuality "1"]
[TimeControl "40/5400+30:1800+30"]

1. c4 {[%emt 0:00:03]} Nf6 {[%emt 0:00:29]} 2. g3 {[%emt 0:00:43]} e6 {[%emt 0:00:35]} 3. Bg2 {[%emt 0:00:05]} d5 {[%emt 0:00:05]} 4. Nf3 {[%emt 0:00:03]} dxc4 {[%emt 0:00:40]} 5. Qa4+ {[%emt 0:00:23]} Nbd7 {[%emt 0:01:32]} 6. Qxc4 {[%emt 0:00:34]} a6 {[%emt 0:01:09]} 7. Qc2 {[%emt 0:01:11]} c5 {[%emt 0:02:36]} 8. Nc3 {[%emt 0:01:03]} Be7 {[%emt 0:09:36]} 9. a4 {[%emt 0:04:25]} O-O {[%emt 0:02:32]} 10. O-O {[%emt 0:02:57]} Rb8 {[%emt 0:08:40]} 11. a5 {[%emt 0:01:54]} b5 {[%emt 0:05:27]} 12. axb6 {[%emt 0:00:06]} Qxb6 {[%emt 0:02:01]} 13. d3 {[%emt 0:02:00]} Bb7 {[%emt 0:08:38]} 14. Bf4 {[%emt 0:06:10]} Bd6 {[%emt 0:06:02]} 15. Bxd6 {[%emt 0:08:49]} Qxd6 {[%emt 0:00:07]} 16. Nd2 {[%emt 0:00:03]} Bxg2 {[%emt 0:05:43]} 17. Kxg2 {[%emt 0:00:03]} Nd5 {[%emt 0:02:49]} 18. Nc4 {[%emt 0:09:26]} Qc6 {[%emt 0:02:40]} 19. Kg1 {[%emt 0:00:05]} N7b6 {[%emt 0:05:25]} 20. Na5 {[%emt 0:05:03]} Qc7 {[%emt 0:02:17]} 21. Ne4 {[%emt 0:00:04]} Rfc8 {[%emt 0:02:54]} 22. Rfc1 {[%emt 0:01:35]} Nd7 {[%emt 0:02:15]} 23. Qd2 {[%emt 0:07:07]} Rb4 {[%emt 0:04:07]} 24. Nc4 {[%emt 0:01:55]} Qc6 {[%emt 0:03:07]} 25. Ra5 {[%emt 0:09:14]} Ra8 {[%emt 0:03:48]} 26. Rca1 {[%emt 0:03:45]} h6 {[%emt 0:02:01]} 27. Qc1 {[%emt 0:06:09]} Rb5 {[%emt 0:04:46]} 28. R5a3 {[%emt 0:01:55]} Nb4 {[%emt 0:00:33]} 29. Ned6 {[%emt 0:01:12]} Rbb8 {[%emt 0:00:11]} 30. Ra5 {[%emt 0:04:27]} Qd5 {[%emt 0:01:27]} 31. Qf4 {[%emt 0:03:23]} Nf6 {[%emt 0:02:21]} 32. Rc1 {[%emt 0:02:00]} Nc6 {[%emt 0:03:10]} 33. Ne3 {[%emt 0:13:52]} Qd4 {[%emt 0:00:13]} 34. Raxc5 {[%emt 0:03:52]} Qxf4 {[%emt 0:00:07]} 35. gxf4 {[%emt 0:00:01]} Nd4 {[%emt 0:00:06]} 36. Kf1 {[%emt 0:00:35]} Rxb2 {[%emt 0:01:28]} 37. Nd1 {[%emt 0:01:52]} Rd2 {[%emt 0:01:35]} 38. e3 {[%emt 0:00:45]} Nb3 {[%emt 0:01:32]} 39. Rc8+ {[%emt 0:00:18]} Rxc8 {[%emt 0:00:02]} 40. Rxc8+ {[%emt 0:00:05]} Kh7 {[%emt 0:00:08]} 41. Ke1 {[%emt 0:02:07]} Rxd3 {[%emt 0:06:51]} 42. Nxf7 {[%emt 0:00:09]} Rd5 {[%emt 0:02:21]} 43. Rh8+ {[%emt 0:04:22]} Kg6 {[%emt 0:00:05]} 44. Ne5+ {[%emt 0:00:02]} Kh5 {[%emt 0:07:38]} 45. Nc3 {[%emt 0:02:09]} Rc5 {[%emt 0:02:23]} 46. Ne2 {[%emt 0:03:09]} a5 {[%emt 0:01:25]} 47. Kf1 {[%emt 0:03:05]} Nd2+ {[%emt 0:05:17]} 48. Kg2 {[%emt 0:01:59]} Nde4 {[%emt 0:00:21]} 49. Nd4 {[%emt 0:04:48]} Rc7 {[%emt 0:03:34]} 50. f3 {[%emt 0:06:44]} Nd6 {[%emt 0:05:16]} 51. Kh3 {[%emt 0:00:35]} Nf5 {[%emt 0:01:10]} 52. Ne2 {[%emt 0:02:33]} Nd7 {[%emt 0:02:20]} 53. e4 {[%emt 0:00:35]} Nxe5 {[%emt 0:00:34]} 54. exf5 {[%emt 0:00:15]} Nxf3 {[%emt 0:00:31]} 55. Ng3# {[%emt 0:00:42]} 1-0

[Event "Reykjavik Open 2025"]
[Site "Reykjavik"]
[Date "2025.04.10"]
[Round "3.1"]
[White "Maghsoodloo, Parham"]
[Black "Licznerski, Lukasz"]
[Result "1-0"]
[Annotator "RC"]
[ECO "D17"]
[WhiteElo "2684"]
[BlackElo "2436"]
[PlyCount "82"]
[EventDate "2025.04.09"]
[EventType "swiss"]
[EventCountry "ISL"]
[SourceTitle "playchess.com"]
[Source "ChessBase"]
[SourceQuality "1"]
[TimeControl "40/5400+30:1800+30"]

1. c4 {[%emt 0:00:02]} c6 {[%emt 0:00:30]} 2. d4 {[%emt 0:00:34]} d5 {[%emt 0:00:03]} 3. Nf3 {[%emt 0:00:09]} Nf6 {[%emt 0:00:04]} 4. Nc3 {[%emt 0:03:48]} dxc4 {[%emt 0:00:05]} 5. a4 {[%emt 0:00:08]} Bf5 {[%emt 0:00:07]} 6. Ne5 {[%emt 0:00:09]} e6 {[%emt 0:00:43]} 7. f3 {[%emt 0:22:28]} Bb4 {[%emt 0:00:10]} 8. e4 {[%emt 0:03:05]} Bxe4 {[%emt 0:00:09]} 9. fxe4 {[%emt 0:00:07]} Nxe4 {[%emt 0:00:07]} 10. Bd2 {[%emt 0:01:31]} Qxd4 {[%emt 0:00:23]} 11. Nxe4 {[%emt 0:00:18]} Qxe4+ {[%emt 0:00:14]} 12. Qe2 {[%emt 0:00:05]} Bxd2+ {[%emt 0:00:12]} 13. Kxd2 {[%emt 0:00:05]} Qd5+ {[%emt 0:02:39]} 14. Kc3 {[%emt 0:07:17]} Na6 {[%emt 0:03:24]} 15. Qe3 {[%emt 0:15:02]} Qa5+ {[%emt 0:13:03]} 16. Kc2 {[%emt 0:00:11]} Nb4+ {[%emt 0:00:17]} 17. Kc1 {[%emt 0:04:11]} Qd5 {[%emt 0:18:21]} 18. Be2 {[%emt 0:04:21]} c3 {[%emt 0:13:11]} 19. Ra3 {[%emt 0:30:16]} O-O {[%emt 0:06:36]} 20. bxc3 {[%emt 0:02:12]} Qxg2 {[%emt 0:03:09]} 21. Re1 {[%emt 0:02:07]} Nd5 {[%emt 0:00:21]} 22. Qg3 {[%emt 0:00:01]} Qxg3 {[%emt 0:00:59]} 23. hxg3 {[%emt 0:00:02]} Rad8 {[%emt 0:05:36]} 24. Rb3 {[%emt 0:02:46]} f6 {[%emt 0:03:32]} 25. Nd3 {[%emt 0:00:10]} b6 {[%emt 0:07:10]} 26. c4 {[%emt 0:00:01]} Nc7 {[%emt 0:00:05]} 27. Nb4 {[%emt 0:01:52]} Rd6 {[%emt 0:00:57]} 28. Bf3 {[%emt 0:00:02]} Rf7 {[%emt 0:06:28]} 29. a5 {[%emt 0:00:56]} bxa5 {[%emt 0:04:25]} 30. Nxc6 {[%emt 0:00:01]} Na6 {[%emt 0:00:09]} 31. Rd1 {[%emt 0:01:01]} Rxd1+ {[%emt 0:00:18]} 32. Kxd1 {[%emt 0:00:05]} Rd7+ {[%emt 0:05:35]} 33. Kc2 {[%emt 0:01:12]} Rc7 {[%emt 0:00:44]} 34. Kc3 {[%emt 0:00:33]} Nc5 {[%emt 0:01:29]} 35. Rb5 {[%emt 0:00:30]} Na4+ {[%emt 0:00:50]} 36. Kd4 {[%emt 0:00:41]} Rd7+ {[%emt 0:00:11]} 37. Ke3 {[%emt 0:00:05]} a6 {[%emt 0:01:17]} 38. Rb8+ {[%emt 0:00:52]} Kf7 {[%emt 0:00:03]} 39. Nxa5 {[%emt 0:00:24]} Rc7 {[%emt 0:01:15]} 40. Bc6 {[%emt 0:00:38]} Nc5 {[%emt 0:00:09]} 41. Kd4 {[%emt 0:30:31]} Nd7 {[%emt 0:30:16]} 1-0